bitfinex-derivatives/quotes_ETHF0:USTF0_20250422
["timestamp","ask_amount","ask_price","bid_price","bid_amount"]
[1745335948133,3.81019699,1701.5,1701.3,1.17506]
[1745335948328,3.20388052,1701.3,1701.2,3.2078]
[1745335948627,1.17563,1700.5,1700.4,3.2078]
[1745335948924,9.861,1700.9,1700.3,3.2078]
[1745335949232,6.322,1700.9,1700.7,3.2078]
[1745335949535,0.00881186,1700.8,1700.7,4.38329]
[1745335949825,2.24497268,1700.9,1700.8,1.17542]
[1745335950230,3.20388052,1700.8,1700.2,0.00881186]
[1745335950433,11.29484766,1700.9,1700.7,1.17544]
[1745335950731,40.8,1701.1,1701.0,1.17528]
[1745335951029,0.00881186,1701.2,1701.0,2.93821]
[1745335951329,3.20388052,1701.1,1700.7,6.322]
[1745335951529,1.17542,1700.8,1700.7,6.322]
[1745335951729,1.17566,1700.5,1700.2,3.2078]
[1745335951929,2.93971,1700.2,1699.2,3.2078]
[1745335952127,13.3558,1700.4,1699.4,3.2078]
[1745335952128,3.2078,1700.3,1699.4,3.2078]
[1745335952322,0.06910231,1700.1,1699.4,3.2078]
[1745335952521,0.00881186,1700.0,1699.7,0.00881186]
[1745335952722,3.20388052,1699.9,1699.7,0.00881186]
[1745335952926,1.17611,1699.8,1699.7,0.00881186]
[1745335953129,1.17611,1699.8,1699.1,3.2078]
[1745335953130,7.58779052,1699.8,1699.1,3.2078]
[1745335953321,7.23608052,1699.7,1699.3,1.17643]
[1745335953523,3.20388052,1699.7,1699.5,1.17631]
[1745335953828,5.17359238,1700.0,1699.4,3.2078]
[1745335953829,0.00489238,1700.0,1699.4,3.2078]
[1745335954028,4.37995052,1699.9,1699.6,1.17623]
[1745335954327,3.2078,1699.7,1699.6,0.00881186]
[1745335954533,13.6748,1699.7,1698.7,3.2078]
[1745335954724,3.20388052,1699.6,1699.3,1.17641]
[1745335954926,3.20388052,1699.6,1699.3,1.17643]
[1745335954927,3.2078,1699.4,1699.3,1.17643]
[1745335955129,3.2078,1699.4,1699.3,1.17642]
[1745335955324,0.50187627,1699.4,1699.3,1.17642]
[1745335955530,3.70575679,1699.4,1699.3,6.17642]
[1745335955725,3.70575679,1699.4,1699.3,1.17646]
[1745335955930,3.70575679,1699.4,1699.2,1.18529186]
[1745335956127,3.70575679,1699.4,1692.9,0.43936064]
[1745335956128,3.70575679,1699.3,1698.6,3.2078]
[1745335956326,3.2078,1699.2,1698.6,3.2078]
[1745335956528,0.50187627,1699.1,1698.6,3.2078]
[1745335956731,6.91355679,1699.1,1698.8,0.01105584]
[1745335956935,3.20388052,1699.0,1698.8,0.01105584]
[1745335957132,6.90963731,1699.1,1698.6,3.2078]
[1745335957336,6.91844917,1699.1,1698.7,0.00418097]
[1745335957533,6.42049238,1699.1,1699.0,1.17666]
[1745335957744,3.2078,1699.6,1699.0,3.2078]
[1745335957942,3.2078,1699.4,1698.7,11.35958097]
[1745335958133,3.20388052,1699.5,1698.9,3.2078]
[1745335958441,3.20388052,1699.4,1698.9,3.2078]
[1745335958631,3.20388052,1699.5,1699.4,1.17639]
[1745335958832,3.20388052,1699.5,1699.4,1.19851197]
[1745335959041,4.9640358,1699.5,1699.4,1.19851197]
[1745335959242,3.20388052,1699.5,1699.4,1.19851197]
[1745335959539,3.20388052,1699.5,1699.4,0.03710758]
[1745335959740,4.9640358,1699.5,1699.4,0.03710758]
[1745335959928,4.9640358,1699.5,1699.4,1.21349758]
[1745335959929,3.20388052,1699.5,1699.4,1.21349758]
[1745335960137,3.2078,1700.2,1699.4,7.97797758]
[1745335960331,1.17632,1699.5,1699.4,0.03710758]
[1745335960529,1.17625,1699.6,1699.5,5.6673]
[1745335960733,2.93640528,1699.6,1699.5,5.6673]
[1745335960933,9.3480858,1699.6,1699.5,5.6673]
[1745335961134,19.21575435,1699.6,1698.4,3.2078]
[1745335961331,3.20388052,1699.5,1699.4,0.00881186]
[1745335961544,0.00881186,1699.7,1699.6,1.17625]
[1745335961835,0.00881186,1699.7,1699.6,1.19123561]
[1745335962035,7.59667238,1699.7,1699.6,0.01498561]
[1745335962236,17.74249238,1699.7,1699.6,0.02997122]
[1745335962441,12.84621,1699.7,1699.4,0.00881186]
[1745335962634,9.53469238,1699.7,1699.4,0.00881186]
[1745335962837,3.20388052,1699.6,1699.4,0.00881186]
[1745335963035,1.17632,1699.5,1699.4,0.00881186]
[1745335963244,6.41168052,1699.5,1699.4,0.00881186]
[1745335963547,6.41168052,1699.5,1699.4,1.18520186]
[1745335963739,3.20388052,1699.5,1699.4,1.18520186]
[1745335964044,6.41168052,1699.5,1699.4,1.18520186]
[1745335964539,0.00881186,1699.7,1699.6,1.17625]
[1745335965045,4.38893238,1699.7,1699.6,0.02997122]
[1745335965237,3.21269238,1699.7,1699.6,1.20622122]
[1745335965437,4.38887238,1699.7,1699.6,0.02997122]
[1745335965835,9.49259,1699.7,1699.6,0.02997122]
[1745335966038,3.2078,1700.8,1700.4,1.17569]
[1745335966241,1.99696238,1701.3,1700.6,3.2078]
[1745335966440,1.99696238,1701.2,1700.6,3.2078]
[1745335966635,1.99696238,1701.1,1701.0,1.17528]
[1745335966837,3.2078,1701.5,1700.9,0.01496963]
[1745335967042,0.00881186,1701.4,1700.9,8.20306963]
[1745335967245,0.00881186,1701.4,1701.3,1.17507]
[1745335967443,2.32938221,1701.6,1701.5,1.17493]
[1745335967953,2.32938221,1701.6,1701.5,6.17493]
[1745335968246,2.32938221,1701.6,1701.5,6.20486926]
[1745335968651,2.32938221,1701.6,1701.5,9.41266926]
[1745335968949,2.32938221,1701.6,1701.5,6.20486926]
[1745335969151,0.00881186,1701.7,1701.6,1.17487]
[1745335969352,0.00881186,1701.7,1701.6,6.77857]
[1745335969547,0.00881186,1701.7,1701.6,11.82347889]
[1745335970044,0.00881186,1701.7,1701.6,11.83844852]
[1745335970549,10.6951,1702.5,1701.6,10.66357852]
[1745335970753,1.17457,1702.1,1701.6,5.66357852]
[1745335970943,1.17478,1701.8,1701.6,5.6037]
[1745335971146,3.2078,1702.0,1701.8,1.23459852]
[1745335971345,6.322,1702.1,1701.9,5.8033]
[1745335971542,1.99696424,1702.0,1701.9,5.8033]
[1745335971745,6.30450609,1702.0,1701.9,5.8033]
[1745335971945,5.12991609,1702.0,1701.9,5.8033]
[1745335972145,11.45191609,1702.0,1701.9,5.8033]
[1745335972348,12.62650609,1702.0,1701.9,5.8033]
[1745335972741,12.62650609,1702.0,1701.9,5.81815302]
[1745335972742,11.45191609,1702.0,1701.9,5.81815302]
[1745335973146,1.92211609,1702.0,1701.9,6.99281302]
[1745335973351,1.92211609,1702.0,1701.9,5.81815302]
[1745335973555,6.30450609,1702.0,1701.9,5.81815302]
[1745335973747,5.12991609,1702.0,1701.9,0.01485302]
[1745335974053,5.12991609,1702.0,1701.9,1.18951302]
[1745335974255,5.12991609,1702.0,1701.9,1.20436604]
[1745335974550,5.12991609,1702.0,1701.9,6.85206604]
[1745335974748,6.30450609,1702.0,1701.9,5.67740604]
[1745335975049,6.30450609,1702.0,1701.9,0.04455906]
[1745335975456,1.92211609,1702.0,1701.9,1.21921906]
[1745335975653,0.00881186,1702.2,1702.1,1.17452]
[1745335975854,9.5298,1702.9,1702.2,2.93614]
[1745335976050,5.10754,1702.9,1702.8,1.17404]
[1745335976250,1.92211609,1703.2,1702.8,2.9351]
[1745335976550,1.92211609,1703.1,1703.0,0.05941208]
[1745335976859,1.17383,1703.1,1703.0,0.05941208]
[1745335977057,3.09594609,1703.1,1703.0,0.05941208]
[1745335977354,5.12991609,1703.1,1703.0,0.0742651]
[1745335977563,8.09594609,1703.1,1703.0,0.0742651]
[1745335977750,13.78624609,1703.1,1703.0,0.0742651]
[1745335978357,8.78624609,1703.1,1703.0,0.0742651]
[1745335978549,1.92211609,1703.1,1703.0,1.2481651]
[1745335978749,1.92211609,1703.1,1703.0,0.08913999]
[1745335978956,3.09594609,1703.1,1703.0,0.08913999]
[1745335979149,1.1739,1703.0,1702.9,0.00881186]
[1745335979357,1.17421,1702.6,1702.3,4.38214]
[1745335979656,42.72211609,1702.9,1702.4,2.93579]
[1745335979953,1.92211609,1702.9,1702.8,1.17404]
[1745335980348,0.00169365,1703.2,1703.1,1.17383]
[1745335980550,5.2298,1703.6,1703.4,1.17356]
[1745335980759,1.17369,1703.3,1703.2,5.7161]
[1745335980952,4.38149,1703.3,1703.2,0.01487489]
[1745335981251,1.92211609,1703.3,1703.2,1.18863489]
[1745335981456,13.85570609,1703.3,1703.2,0.01487489]
[1745335981655,8.85570609,1703.3,1703.2,0.01487489]
[1745335981853,1.92211609,1703.3,1703.2,1.18863489]
[1745335982057,3.21661185,1703.4,1703.3,1.17369]
[1745335982254,3.09580609,1703.3,1703.2,0.01487489]
[1745335982857,7.54901609,1703.3,1703.2,1.20350978]
[1745335983460,1.92211609,1703.3,1703.2,0.04462467]
[1745335983657,3.09580609,1703.3,1703.2,0.04462467]
[1745335983860,8.09580609,1703.3,1703.2,0.04462467]
[1745335984051,8.72270609,1703.3,1703.2,0.04462467]
[1745335984446,8.72270609,1703.3,1703.2,1.21838467]
[1745335984447,7.54901609,1703.3,1703.2,1.21838467]
[1745335984652,13.72270609,1703.3,1703.2,0.04462467]
[1745335984951,2.93465,1703.1,1702.7,0.00881186]
[1745335985252,2.93465,1703.1,1702.7,1.86e-06]
[1745335985253,4.38184,1702.8,1702.7,1.86e-06]
[1745335985558,2.9363,1702.2,1701.7,1.17476]
[1745335985755,2.9363,1702.2,1701.1,8.4795]
[1745335985756,2.937,1701.7,1701.1,8.4795]
[1745335985956,6.14523,1701.5,1701.0,5.1815]
[1745335986161,3.2078,1701.3,1701.1,1.17521]
[1745335986354,10.797,1701.2,1700.0,0.10234045]
[1745335986662,3.2078,1700.6,1699.6,17.95802289]
[1745335986960,3.2078,1700.4,1699.7,5.1815]
[1745335987164,3.2078,1700.6,1699.9,0.00881186]
[1745335987456,0.00881186,1700.3,1699.9,1.18482186]
[1745335987652,1.92211609,1700.2,1700.1,1.1759]
[1745335987854,1.92211609,1700.2,1700.0,5.1815]
[1745335988056,1.17597,1700.0,1699.9,0.00881186]
[1745335988253,4.38377,1700.0,1699.9,1.86e-06]
[1745335988455,16.87788609,1700.0,1699.9,1.86e-06]
[1745335988647,52.67788609,1700.0,1699.9,1.86e-06]
[1745335989057,57.7707404,1700.0,1699.9,1.86e-06]
[1745335989457,52.67788609,1700.0,1699.9,1.86e-06]
[1745335990260,51.50191609,1700.0,1699.9,1.86e-06]
[1745335990456,52.67788609,1700.0,1699.9,1.86e-06]
[1745335990655,51.50191609,1700.0,1699.9,1.86e-06]
[1745335990953,52.67788609,1700.0,1699.9,1.86e-06]
[1745335991158,51.50191609,1700.0,1699.9,1.86e-06]
[1745335991359,57.67788609,1700.0,1699.9,1.86e-06]
[1745335991553,57.77073631,1700.0,1699.9,1.86e-06]
[1745335991758,68.57373631,1700.0,1699.9,1.86e-06]
[1745335991960,68.57373858,1700.0,1699.9,1.86e-06]
[1745335992154,2.94016,1699.9,1698.6,6.15006]
[1745335992358,3.2078,1699.3,1698.7,5.61158052]
[1745335992567,3.2078,1699.3,1699.2,1.17653]
[1745335992755,3.2078,1699.3,1699.2,6.17653]
[1745335993659,6.30639609,1699.3,1699.1,0.00881186]
[1745335993863,1.92211609,1699.2,1699.1,0.00881186]
[1745335994061,3.09864609,1699.2,1699.1,0.00881186]
[1745335994368,7.24631609,1699.2,1698.2,6.15079]
[1745335994568,3.2078,1698.8,1698.7,1.17683]
[1745335994864,1.17697,1698.6,1697.8,2.94373]
[1745335995061,3.2078,1698.6,1697.7,3.2078]
[1745335995259,1.92211609,1698.5,1698.4,1.17708]
[1745335995467,3.2078,1698.6,1698.5,1.17701]
[1745335995663,1.86e-06,1698.6,1698.5,1.17701]
[1745335995873,1.86e-06,1698.6,1698.5,6.17701]
[1745335996160,1.86e-06,1698.6,1698.5,1.17701]
[1745335996365,3.90476795,1698.6,1698.5,1.17701]
[1745335996664,0.69696795,1698.6,1698.5,1.17701]
[1745335996963,0.69696795,1698.6,1698.3,0.00881186]
[1745335996964,8.90476795,1698.6,1698.3,0.00881186]
[1745335997168,2.94294,1698.3,1697.6,1.17759]
[1745335997460,5.6844,1698.2,1697.5,3.4084506]
[1745335997664,3.2078,1697.9,1697.5,3.4084506]
[1745335997867,3.2078,1697.9,1697.8,1.1775]
[1745335998063,10.52000186,1698.6,1698.5,1.17701]
[1745335998064,1.86e-06,1698.6,1698.5,1.17701]
[1745335998257,0.69696609,1698.5,1698.2,5.1796]
[1745335998459,0.69696609,1698.5,1697.9,16.51945]
[1745335998460,3.90476609,1698.5,1698.3,0.01055313]
[1745335998657,5.83946609,1698.4,1698.3,0.01055313]
[1745335998864,0.69696609,1698.4,1698.3,1.18770313]
[1745335999070,0.69696609,1698.4,1698.3,1.18946041]
[1745335999271,3.90476609,1698.4,1698.3,1.18946041]
[1745335999465,0.69696609,1698.4,1698.3,1.18946041]
[1745335999975,0.69696609,1698.4,1698.3,0.01406958]
[1745336000170,3.90476609,1698.4,1698.3,0.01406958]
[1745336000360,1.17719,1698.3,1698.0,1.17735]
[1745336000567,0.69696609,1698.3,1697.8,5.1796]
[1745336000766,5.9781598,1698.2,1697.7,0.00881186]
[1745336000969,3.2078,1697.8,1697.7,0.00881186]
[1745336001169,3.90476609,1698.1,1697.7,0.00881186]
[1745336001376,0.69696609,1698.1,1698.0,1.17736]
[1745336001668,0.69696609,1698.0,1697.7,8.58820186]
[1745336001971,8.7057,1698.5,1697.9,1.17741]
[1745336001972,3.2078,1698.1,1697.9,1.17741]
[1745336002172,1.1775,1697.8,1697.7,0.00881186]
[1745336002369,1.17756,1697.7,1697.6,2.59845]
[1745336002571,11.2878703,1697.7,1697.0,3.2078]
[1745336002774,3.2078,1697.5,1697.4,1.17777]
[1745336002973,0.69696609,1697.6,1697.5,1.1777]
[1745336003179,0.69696609,1697.5,1697.4,1.17777]
[1745336003372,3.2078,1697.6,1697.5,1.1777]
[1745336003572,0.00881186,1697.6,1697.5,1.1777]
[1745336003875,0.70577795,1697.6,1697.5,6.1777]
[1745336004073,0.70577795,1697.6,1697.5,1.1900123]
[1745336004277,11.13081119,1697.6,1697.5,0.0123123]
[1745336004582,1.16370042,1697.4,1697.3,0.00881186]
[1745336004769,3.2078,1697.4,1697.3,1.18665186]
[1745336004964,0.00881186,1697.6,1697.5,1.1777]
[1745336005169,1.17777,1697.4,1697.3,0.00881186]
[1745336005373,10.60427748,1697.5,1697.3,0.00881186]
[1745336005569,0.69696609,1697.4,1697.3,1.18665186]
[1745336005769,0.00881186,1697.6,1697.5,1.1777]
[1745336006166,0.70577795,1697.6,1697.4,5.371]
[1745336006372,3.90476609,1697.5,1697.4,6.54877]
[1745336006575,0.69696609,1697.5,1697.4,6.54877]
[1745336006975,0.00881186,1697.6,1697.5,1.1777]
[1745336007175,0.00881186,1697.6,1697.5,6.7417]
[1745336007480,1.17719,1698.3,1698.2,1.17722]
[1745336007776,1.17777,1697.4,1696.7,3.2078]
[1745336007980,6.15168,1697.8,1697.2,5.564]
[1745336008178,3.2078,1697.5,1697.4,1.17773]
[1745336008377,4.38553,1697.5,1697.3,0.0193631]
[1745336008676,41.98650186,1697.6,1697.5,1.1777]
[1745336008878,40.80881186,1697.6,1697.5,6.7417]
[1745336009075,45.89120795,1697.6,1697.5,5.564]
[1745336009277,42.68340795,1697.6,1697.5,0.01406958]
[1745336009580,43.72301119,1697.6,1697.5,0.01406958]
[1745336009881,45.89120795,1697.6,1697.5,0.01406958]
[1745336010077,3.2078,1697.9,1697.5,5.01582686]
[1745336010274,3.2078,1698.3,1697.8,2.94368]
[1745336010474,3.2078,1698.3,1698.0,2.96098603]
[1745336010672,3.2078,1698.3,1698.1,6.06914]
[1745336010874,1.17729,1698.1,1698.0,0.01758603]
[1745336011382,1.17729,1698.1,1697.8,6.06939]
[1745336011383,1.1580848,1697.9,1697.8,4.8919]
[1745336011681,0.76206877,1697.9,1697.3,0.00881186]
[1745336011883,5.14729877,1697.9,1697.8,1.1775]
[1745336012080,3.2078,1697.9,1697.5,7.83615]
[1745336012274,1.17759,1697.7,1697.6,1.1776]
[1745336012476,1.17763,1697.6,1697.5,4.8919]
[1745336012672,1.17777,1697.4,1697.3,0.00881186]
[1745336012875,4.38557,1697.4,1697.3,0.00881186]
[1745336013079,1.17777,1697.4,1697.3,0.00881186]
[1745336013471,1.17776,1697.5,1697.3,0.00881186]
[1745336013673,1.1777,1697.5,1697.4,1.17777]
[1745336013980,2.94517,1697.0,1696.4,3.2078]
[1745336014179,3.2078,1696.6,1696.1,4.38643]
[1745336014384,40.8,1696.5,1696.1,7.6717]
[1745336014578,46.75075781,1696.5,1696.1,7.6717]
[1745336014780,40.8,1696.5,1696.2,4.4639]
[1745336015075,3.2078,1696.9,1696.6,1.17826]
[1745336015281,0.00883835,1696.5,1696.3,1.17848]
[1745336015479,3.2078,1696.4,1696.2,4.47273835]
[1745336015779,0.10423807,1696.4,1696.2,0.00883835]
[1745336016082,1.17854,1696.3,1696.2,0.00883835]
[1745336016289,3.2078,1696.3,1695.2,2.94824]
[1745336016581,4.38667,1695.9,1695.6,1.179]
[1745336016779,3.2078,1696.0,1695.4,2.94783]
[1745336016986,2.2554481,1695.8,1695.1,0.48386401]
[1745336017180,7.77785421,1695.9,1695.2,4.6714]
[1745336017481,0.00883835,1695.7,1695.3,0.00883835]
[1745336017782,3.2078,1695.5,1695.4,1.17916]
[1745336017975,0.03478497,1695.6,1695.5,1.17909]
[1745336018181,0.00883835,1695.7,1695.6,1.17902]
[1745336018878,43.13381127,1695.7,1695.6,1.17902]
[1745336019079,45.19562835,1695.7,1695.4,5.85051]
[1745336019281,43.13381127,1695.7,1695.6,1.17902]
[1745336019480,40.80883835,1695.7,1695.6,1.17902]
[1745336019684,44.01663835,1695.7,1695.6,1.17902]
[1745336019876,40.80883835,1695.7,1695.6,1.17902]
[1745336020077,0.00883835,1695.7,1695.6,1.17902]
[1745336020279,8.35e-06,1695.7,1695.6,9.38682]
[1745336021080,3.2078,1697.0,1695.6,8.2078]
[1745336021281,40.8,1697.5,1696.9,3.2078]
[1745336021489,1.66452599,1697.5,1697.4,1.17777]
[1745336021783,3.2078,1697.6,1696.7,3.2078]
[1745336022085,3.2078,1697.1,1696.9,4.5341]
[1745336022278,1.17808,1697.0,1696.7,3.2078]
[1745336022480,0.10416436,1697.0,1696.9,1.17812]
[1745336022678,3.31196436,1697.0,1696.5,4.5611]
[1745336022885,3.2078,1696.8,1696.5,4.5611]
[1745336023089,3.2078,1696.8,1696.6,1.17833]
[1745336023276,3.2078,1696.8,1696.7,1.17826]
[1745336023477,4.4448,1696.9,1696.8,1.17819]
[1745336023680,0.00883835,1697.3,1696.8,5.0]
[1745336023981,4.38592,1697.0,1696.5,0.00883835]
[1745336024181,1.17826,1696.7,1696.5,0.00883835]
[1745336024498,4.65317171,1696.9,1696.7,1.17823]
[1745336024780,4.65317171,1696.9,1696.5,0.00883835]
[1745336024781,4.38601,1696.8,1696.6,1.17831]
[1745336024978,5.62309,1696.7,1696.5,1.18721835]
[1745336025179,0.2431034,1696.8,1696.7,1.17826]
[1745336025385,4.4148,1697.2,1696.5,0.00883835]
[1745336025386,9.23118,1697.0,1696.5,0.00883835]
[1745336025578,1.17812,1696.9,1696.7,0.01495141]
[1745336025779,1.52557877,1697.0,1696.9,1.17812]
[1745336025983,3.21663835,1697.3,1697.2,1.17791]
[1745336026174,0.00883835,1697.3,1697.2,1.17791]
[1745336026380,6.15046,1698.5,1697.9,1.1774]
[1745336026577,4.80044577,1698.2,1697.4,3.2078]
[1745336026879,0.90072139,1698.1,1697.6,2.94395]
[1745336027080,3.2078,1698.1,1697.8,0.01493538]
[1745336027287,1.17738,1698.0,1697.8,1.19241538]
[1745336027487,0.7966429,1698.1,1697.8,1.19238538]
[1745336027694,3.21663835,1698.1,1697.8,0.01493538]
[1745336027896,0.00883835,1698.1,1697.8,0.01493538]
[1745336028085,3.2078,1698.0,1697.9,1.17743]
[1745336028385,3.2078,1698.0,1697.9,1.19236538]
[1745336028590,4.39394835,1698.1,1697.9,1.19236538]
[1745336028791,40.8,1698.0,1697.9,1.19236538]
[1745336028994,45.8777428,1698.0,1697.9,0.01493538]
[1745336029289,2.94383,1697.8,1697.2,1.17788]
[1745336029495,9.3331,1697.9,1697.5,1.17768]
[1745336029791,0.31225387,1697.7,1697.6,1.17763]
[1745336029991,1.17669,1699.0,1698.0,3.2078]
[1745336030182,2.94097,1699.4,1698.7,3.2078]
[1745336030491,4.38436,1699.2,1699.0,0.01495141]
[1745336030686,0.44917936,1700.1,1699.5,1.17627]
[1745336030891,0.44917936,1700.1,1699.7,0.02990282]
[1745336030892,1.17613,1699.8,1699.7,0.02990282]
[1745336031383,5.0,1699.8,1699.0,3.2078]
[1745336031590,3.2078,1699.2,1698.7,3.2078]
[1745336031892,1.17673,1698.9,1698.8,4.7573]
[1745336032183,1.17683,1698.8,1698.5,3.2078]
[1745336032391,1.17683,1698.8,1697.6,1.17761]
[1745336032392,2.94245,1698.6,1697.6,1.17761]
[1745336032590,3.2078,1698.3,1697.2,3.2078]
[1745336032783,1.17766,1697.6,1697.2,3.2078]
[1745336032983,3.2078,1697.8,1697.1,2.9449]
[1745336033184,3.2078,1697.8,1697.6,0.00883835]
[1745336033387,2.94312,1698.2,1697.7,2.94392]
[1745336033388,3.2078,1698.2,1697.7,2.94392]
[1745336033584,8.35e-06,1697.9,1697.8,1.1775]
[1745336033992,4.86965738,1697.9,1697.6,1.18643835]
[1745336034280,4.38536,1697.7,1697.6,0.00883835]
[1745336034686,4.45475179,1697.7,1697.6,0.00883835]
[1745336034888,0.06939179,1697.7,1696.9,7.8949]
[1745336035191,1.17769,1697.6,1697.3,1.17779]
[1745336035384,1.17756,1697.7,1697.4,1.17774]
[1745336035583,0.8661001,1697.7,1697.5,4.5523]
[1745336035785,11.00300835,1697.9,1697.5,4.5523]
[1745336035984,8.35e-06,1697.9,1697.8,1.1775]
[1745336036394,8.35e-06,1697.9,1697.8,6.1775]
[1745336037592,8.35e-06,1697.9,1697.8,1.1775]
[1745336037785,8.35e-06,1697.9,1697.8,6.1775]
[1745336038190,8.35e-06,1697.9,1697.8,6.19477718]
[1745336038790,5.75366341,1698.6,1698.5,1.17701]
[1745336039201,5.75366341,1698.6,1698.5,6.17701]
[1745336039389,5.75366341,1698.6,1698.5,6.22420158]
[1745336039591,1.52047283,1698.6,1698.5,6.22420158]
[1745336039790,7.67155121,1698.8,1698.7,1.17687]
[1745336040106,7.67155121,1698.8,1698.7,1.23901878]
[1745336040484,7.67155121,1698.8,1698.7,6.23901878]
[1745336040690,7.67155121,1698.8,1698.7,9.46177598]
[1745336040989,11.50732682,1699.2,1699.1,1.17659]
[1745336041183,11.50340734,1699.2,1699.1,1.25886646]
[1745336041393,10.28101734,1699.2,1699.1,6.25886646]
[1745336041586,13.42521462,1699.4,1699.3,1.17646]
[1745336041794,9.58071462,1699.4,1699.3,4.38426]
[1745336042002,9.58071462,1699.4,1699.3,9.38426]
[1745336042193,9.58071462,1699.4,1699.3,4.38426]
[1745336042399,9.58071462,1699.4,1699.3,1.25873646]
[1745336042893,8.38265462,1699.4,1699.3,9.46653646]
[1745336043096,4.62e-06,1699.4,1699.3,9.46653646]
[1745336043293,14.09529502,1699.5,1699.4,1.17639]
[1745336043597,8.35e-06,1699.5,1699.4,1.17639]
[1745336043805,4.5231,1700.2,1700.1,1.1759]
[1745336043997,4.5231,1700.2,1699.6,6.14838]
[1745336044299,4.5231,1700.2,1699.9,0.08227646]
[1745336044497,10.42339667,1700.4,1700.3,1.17576]
[1745336044896,7.89816667,1700.4,1700.3,9.38356]
[1745336045091,4.82983667,1700.4,1700.3,9.38356]
[1745336045286,0.01569667,1700.4,1700.3,9.38356]
[1745336045494,0.01569667,1700.4,1700.3,9.46583646]
[1745336045789,0.01569667,1700.4,1700.3,0.08227646]
[1745336045990,1.19138667,1700.4,1700.3,0.08227646]
[1745336046197,0.01569667,1700.4,1700.3,0.08227646]
[1745336046496,0.01569667,1700.4,1700.3,1.25803646]
[1745336046697,0.01569667,1700.4,1700.3,0.08227646]
[1745336046901,1.19138667,1700.4,1700.3,0.08227646]
[1745336047198,1.07854491,1700.3,1700.2,0.00883835]
[1745336047395,4.696,1700.3,1700.2,1.18466835]
[1745336047699,4.696,1700.3,1700.2,1.19960698]
[1745336047895,0.00883835,1700.5,1700.4,1.17569]
[1745336048199,1.18446835,1700.5,1700.4,0.02987726]
[1745336048395,6.18446835,1700.5,1700.4,0.02987726]
[1745336048590,1.17576,1700.3,1700.2,0.00883835]
[1745336048902,1.17591,1700.1,1699.9,1.17602]
[1745336049293,1.17591,1700.1,1700.0,0.01493863]
[1745336049495,45.18359,1700.3,1700.1,1.17588]
[1745336049792,40.8,1700.3,1700.0,0.01493863]
[1745336049995,4.3837,1700.1,1700.0,0.00883835]
[1745336050203,75.96064965,1700.1,1698.9,3.2078]
[1745336050389,75.96064965,1700.1,1698.8,1.17679]
[1745336050390,3.2078,1699.2,1698.8,1.17679]
[1745336050594,1.17656,1699.2,1698.9,1.1767]
[1745336050794,13.9038,1699.5,1698.6,2.94233]
[1745336050998,1.17649,1699.3,1698.7,2.94216]
[1745336051300,0.00883835,1699.2,1698.9,0.00883835]
[1745336051694,0.00883835,1699.2,1699.1,1.17659]
[1745336052699,5.00883835,1699.2,1699.0,1.17661]
[1745336052900,1.17662,1699.1,1698.9,1.18553835]
[1745336053098,4.39320835,1699.2,1699.0,1.17665]
[1745336053297,0.00883835,1699.2,1699.1,1.17659]
[1745336053694,5.00883835,1699.2,1698.9,0.00883835]
[1745336053896,0.00883835,1699.2,1699.1,1.17659]
[1745336054496,4.82743835,1699.2,1699.1,1.17659]
[1745336054903,6.00396835,1699.2,1699.0,1.17662]
[1745336055101,6.00396835,1699.2,1698.9,0.00883835]
[1745336055102,1.17666,1699.0,1698.9,1.18553835]
[1745336055299,4.38443,1699.1,1698.9,1.18553835]
[1745336055496,4.8186,1699.0,1698.9,1.18553835]
[1745336055697,45.6186,1699.0,1698.9,1.18553835]
[1745336055892,45.6186,1699.0,1698.9,0.0237263]
[1745336056505,45.6186,1699.0,1698.9,0.03861425]
[1745336056897,46.79526,1699.0,1698.9,0.0535022]
[1745336057099,1.17686,1698.8,1698.5,1.17697]
[1745336057402,2.94216,1698.8,1698.0,3.2078]
[1745336057607,10.374,1698.9,1698.4,0.01487597]
[1745336057908,1.17756,1697.8,1697.4,3.2078]
[1745336058096,1.16276205,1697.6,1697.4,4.38556]
[1745336058297,1.1777,1697.5,1697.4,0.00590805]
[1745336058519,0.45092713,1697.7,1697.4,1.18365805]
[1745336058700,0.07706457,1697.8,1697.4,0.00590805]
[1745336059006,1.1777,1697.5,1697.4,0.00590805]
[1745336059600,3.2078,1697.7,1697.4,1.18367805]
[1745336059804,4.3854,1697.7,1697.4,1.18363805]
[1745336060005,1.1777,1697.5,1697.4,0.00590805]
[1745336060410,1.17769,1697.6,1697.4,0.00590805]
[1745336060598,1.18635835,1697.8,1697.4,0.00590805]
[1745336060800,0.00883835,1697.8,1697.6,1.17761]
[1745336061005,4.4149,1697.7,1697.6,1.17763]
[1745336061507,4.4149,1697.7,1697.4,0.00590805]
[1745336061908,3.21663835,1697.8,1697.4,0.00590805]
[1745336062204,4.5411,1698.0,1697.9,1.17743]
[1745336062413,10.57176,1698.6,1697.9,3.2078]
[1745336062610,5.85189,1698.6,1698.4,1.17708]
[1745336062803,3.2078,1699.2,1698.4,2.94265]
[1745336063106,1.1769,1698.7,1698.5,1.17697]
[1745336063298,1.17697,1698.6,1698.4,1.17705]
[1745336063500,0.00883835,1698.8,1698.4,0.00883835]
[1745336063707,1.17694,1698.6,1698.4,1.18586835]
[1745336063895,1.17735,1698.1,1697.9,4.38521]
[1745336064102,1.17756,1697.8,1697.6,1.17762]
[1745336064302,2.94375,1697.8,1697.1,0.1025]
[1745336064503,1.17807,1697.0,1696.8,3.2078]
[1745336064701,6.09597859,1697.7,1696.8,1.17813]
[1745336064702,1.17801,1697.1,1696.8,1.17813]
[1745336065006,3.2078,1697.3,1696.8,1.17816]
[1745336065306,1.17807,1697.0,1696.8,1.18409805]
[1745336065500,0.00883835,1697.1,1697.0,1.17805]
[1745336065904,0.00883835,1697.1,1697.0,9.38585]
[1745336066207,1.17777,1697.5,1697.0,5.0]
[1745336066400,1.17793,1697.2,1696.9,1.1781]
[1745336066610,1.17794,1697.2,1696.9,1.1781]
[1745336066796,3.2078,1697.3,1697.1,1.17796]
[1745336066999,4.38525,1697.9,1697.6,1.17759]
[1745336067203,1.17752,1697.8,1697.5,1.17766]
[1745336067403,3.76157265,1697.8,1697.4,1.17775]
[1745336067605,1.1777,1697.5,1697.4,0.00883835]
[1745336068208,6.3858999,1697.5,1697.4,0.02935617]
[1745336068503,14.4279999,1697.5,1697.4,0.02935617]